Workbook

Sheet Sheet1
A1: Profit and Loss by Month
A2: WAHA RV Camp
A3: January 1-September 30, 2025
A5: Distribution account | B5: January 2025 | C5: February 2025 | D5: March 2025 | E5: April 2025 | F5: May 2025 | G5: June 2025 | H5: July 2025 | I5: August 2025 | J5: September 2025 | K5: Total
A6: Income
A7: Energy Transfer - Rent | B7: 10800 | C7: 7200 | E7: 3600 | F7: 6000 | G7: 6000 | H7: 6000 | I7: 6000 | J7: 6000 | K7: =B7+C7+D7+E7+F7+G7+H7+I7+J7 -> 51600
A8: Rent | B8: 1300 | C8: 730 | D8: 900 | E8: 0 | F8: 2000 | G8: 1500 | H8: 740 | I8: 450 | J8: 450 | K8: 8070
A9: Rent - Nightly Rate | C9: 75 | F9: 80 | K9: 155
A10: Rent - One (1)Month | B10: 4790 | C10: 4040 | D10: 3950 | E10: 7700 | F10: 335 | G10: 3500 | H10: 3900 | I10: 3425 | J10: 3375 | K10: 35015
A11: Rent - One (1) Week | E11: 400 | G11: 125 | I11: 500 | J11: 270 | K11: 1295
A12: Total for Income | B12: =B7+B8+B9+B10+B11 -> 16890 | C12: 12045 | D12: 4850 | E12: 11700 | F12: 8415 | G12: 11125 | H12: 10640 | I12: 10375 | J12: 10095 | K12: 96135
A13: Cost of Goods Sold
A14: Gross Profit | B14: =B12-B13 -> 16890 | C14: 12045 | D14: 4850 | E14: 11700 | F14: 8415 | G14: 11125 | H14: 10640 | I14: 10375 | J14: 10095 | K14: =B14+C14+D14+E14+F14+G14+H14+I14+J14 -> 96135
A15: Expenses
A16: Advertising & marketing | B16: 378.87 | C16: 381.39 | D16: 372.43 | E16: 58.96 | F16: 169.01 | G16: 379.8 | H16: 373.54 | I16: 382.99 | J16: 369.31 | K16: =B16+C16+D16+E16+F16+G16+H16+I16+J16 -> 2866.3
A17: General business expenses | H17: 500 | K17: 500
A18: Bank fees & service charges | B18: 10 | C18: 55 | D18: 10 | E18: 10 | F18: 127.71 | G18: 10 | H18: 10 | I18: 10 | K18: 242.71
A19: Memberships & subscriptions | B19: 98.97 | C19: 14.65 | G19: 14.65 | H19: 14.65 | I19: 14.65 | J19: 14.65 | K19: 172.22
A20: Permits | F20: 410 | K20: 410
A21: Total for General business expenses | B21: =B17+B18+B19+B20 -> 108.97 | C21: 69.65 | D21: 10 | E21: 10 | F21: 537.71 | G21: 24.65 | H21: 524.65 | I21: 24.65 | J21: 14.65 | K21: 1324.93
A22: Insurance | I22: 2683.24 | K22: 2683.24
A23: Meals | E23: 0 | K23: 0
A24: Payroll expenses
A25: Total for Payroll expenses | B25: 0 | C25: 0 | D25: 0 | E25: 0 | F25: 0 | G25: 0 | H25: 0 | I25: 0 | J25: 0 | K25: 0
A26: Property Taxes | B26: 2414.82 | K26: =B26+C26+D26+E26+F26+G26+H26+I26+J26 -> 2414.82
A27: QuickBooks Payments Fees | B27: 207.46 | C27: 191.91 | D27: 210.01 | E27: 216.74 | F27: 154.39 | G27: 177.12 | H27: 192.73 | I27: 168.37 | J27: 136.06 | K27: 1654.79
A28: Repairs & maintenance | B28: 1669.14 | C28: 1360 | D28: 450 | E28: 1225 | F28: 1213.1 | G28: 725 | H28: 1125 | I28: 1581 | J28: 775 | K28: 10123.24
A29: Tax Prep | F29: 750 | K29: 750
A30: Travel | E30: 103.8 | K30: 103.8
A31: Utilities
A32: Electricity | B32: 1771.1 | C32: 1819.76 | D32: 2048.2 | E32: 1738.17 | F32: 1519.93 | G32: 1744.01 | H32: 2085.34 | I32: 2123.67 | J32: 2189.87 | K32: =B32+C32+D32+E32+F32+G32+H32+I32+J32 -> 17040.05
A33: Internet & TV services | B33: 1338.71 | C33: 1338.71 | D33: 1338.71 | E33: 1338.71 | F33: 1338.71 | G33: 1338.71 | H33: 1338.71 | I33: 1338.71 | J33: 1338.71 | K33: 12048.39
A34: Phone service | D34: 14.65 | E34: 14.65 | F34: 14.65 | K34: 43.95
A35: Water & sewer | B35: 905.92 | C35: 912.41 | D35: 844.89 | E35: 804.89 | F35: 808.25 | G35: 787.81 | H35: 784.45 | I35: 817.65 | J35: 772.37 | K35: 7438.64
A36: Total for Utilities | B36: =B31+B32+B33+B34+B35 -> 4015.73 | C36: 4070.88 | D36: 4246.45 | E36: 3896.42 | F36: 3681.54 | G36: 3870.53 | H36: 4208.5 | I36: 4280.03 | J36: 4300.95 | K36: 36571.03
A37: Website | C37: 204.55 | K37: 204.55
A38: Total for Expenses | B38: =B16+B21+B22+B25+B26+B27+B28+B29+B30+B36+B37 -> 8794.99 | C38: =C16+C21+C22+C23+C25+C26+C27+C28+C29+C30+C36+C37 -> 6278.38 | D38: =D16+D21+D22+D23+D25+D26+D27+D28+D29+D30+D36+D37 -> 5288.89 | E38: =E16+E21+E22+E23+E25+E26+E27+E28+E29+E30+E36+E37 -> 5510.92 | F38: =F16+F21+F22+F23+F25+F26+F27+F28+F29+F30+F36+F37 -> 6505.75 | G38: =G16+G21+G22+G23+G25+G26+G27+G28+G29+G30+G36+G37 -> 5177.1 | H38: =H16+H21+H22+H23+H25+H26+H27+H28+H29+H30+H36+H37 -> 6424.42 | I38: =I16+I21+I22+I23+I25+I26+I27+I28+I29+I30+I36+I37 -> 9120.28 | J38: =J16+J21+J22+J23+J25+J26+J27+J28+J29+J30+J36+J37 -> 5595.97 | K38: =K16+K21+K22+K23+K25+K26+K27+K28+K29+K30+K36+K37 -> 58696.7
A39: Net Operating Income | B39: =B14-B38 -> 8095.01 | C39: =C14-C38 -> 5766.62 | D39: =D14-D38 -> -438.89 | E39: =E14-E38 -> 6189.08 | F39: =F14-F38 -> 1909.25 | G39: =G14-G38 -> 5947.9 | H39: =H14-H38 -> 4215.58 | I39: =I14-I38 -> 1254.72 | J39: =J14-J38 -> 4499.03 | K39: =K14-K38 -> 37438.3
A40: Other Income
A41: Other income
A42: Interest earned | B42: 27.9 | C42: 25.25 | D42: 28.01 | E42: 27.17 | F42: 28.13 | G42: 27.28 | H42: 28.25 | I42: 28.31 | K42: =B42+C42+D42+E42+F42+G42+H42+I42+J42 -> 220.3
A43: Total for Other income | B43: =B41+B42 -> 27.9 | C43: 25.25 | D43: 28.01 | E43: 27.17 | F43: 28.13 | G43: 27.28 | H43: 28.25 | I43: 28.31 | K43: =B43+C43+D43+E43+F43+G43+H43+I43+J43 -> 220.3
A44: Total for Other Income | B44: =B43 -> 27.9 | C44: 25.25 | D44: 28.01 | E44: 27.17 | F44: 28.13 | G44: 27.28 | H44: 28.25 | I44: 28.31 | K44: =B44+C44+D44+E44+F44+G44+H44+I44+J44 -> 220.3
A45: Other Expenses
A46: Net Other Income | B46: =B44-B45 -> 27.9 | C46: 25.25 | D46: 28.01 | E46: 27.17 | F46: 28.13 | G46: 27.28 | H46: 28.25 | I46: 28.31 | K46: =B46+C46+D46+E46+F46+G46+H46+I46+J46 -> 220.3
A47: Net Income | B47: =B39+B46 -> 8122.91 | C47: 5791.87 | D47: -410.88 | E47: 6216.25 | F47: 1937.38 | G47: 5975.18 | H47: 4243.83 | I47: 1283.03 | J47: 4499.03 | K47: =B47+C47+D47+E47+F47+G47+H47+I47+J47 -> 37658.6
A51: Accrual Basis Wednesday, October 01, 2025 04:25 PM GMTZ
